fUSD/lending_fUSD_20250308
["ID","MTS","AMOUNT","RATE_DAILY","PERIOD"]
[355672064,1741451443125,-500.0,8.493e-05,2]
[355672066,1741451443134,-676.23,8.493e-05,2]
[355672068,1741451443144,-500.0,8.493e-05,2]
[355672071,1741451443154,-500.0,8.493e-05,2]
[355672073,1741451443165,-1192.68,8.493e-05,2]
[355672077,1741451443175,-528.52,8.493e-05,2]
[355672081,1741451443184,-500.0,8.493e-05,2]
[355672083,1741451443193,-238.79,8.493e-05,2]
[355672085,1741451443203,-547.06569288,8.493e-05,2]
[355672088,1741451443213,-500.0,8.493e-05,2]
[355672090,1741451443224,-628.26,8.493e-05,2]
[355672092,1741451443234,-972.3,8.493e-05,2]
[355672094,1741451443244,-1006.07,8.493e-05,2]
[355672096,1741451443253,-923.34,8.493e-05,2]
[355672098,1741451443263,-500.0,8.493e-05,2]
[355672100,1741451443273,-764.96,8.493e-05,2]
[355672102,1741451443282,-500.0,8.493e-05,2]
[355672104,1741451443291,-565.59,8.493e-05,2]
[355672106,1741451443302,-564.81,8.493e-05,2]
[355672108,1741451443312,-930.15,8.493e-05,2]
[355672110,1741451443322,-633.41,8.493e-05,2]
[355672112,1741451443331,-594.03,8.493e-05,2]
[355672114,1741451443341,-1121.78,8.493e-05,2]
[355672116,1741451443350,-864.36,8.493e-05,2]
[355672118,1741451443359,-500.0,8.493e-05,2]
[355672120,1741451443369,-500.0,8.493e-05,2]
[355672122,1741451443379,-773.96,8.493e-05,2]
[355672124,1741451443389,-9453.73,8.493e-05,2]
[355672126,1741451443398,-603.49,8.493e-05,2]
[355672128,1741451443408,-627.02,8.493e-05,2]
[355672130,1741451443418,-594.4,8.493e-05,2]
[355672132,1741451443427,-1209.92,8.493e-05,2]
[355672134,1741451443436,-4992.78,8.493e-05,2]
[355672136,1741451443445,-855.4,8.493e-05,2]
[355672138,1741451443455,-1003.48,8.493e-05,2]
[355672140,1741451443464,-1041.41,8.493e-05,2]
[355672142,1741451443473,-879.88,8.493e-05,2]
[355672144,1741451443483,-2121.73,8.493e-05,2]
[355672146,1741451443493,-1387.09,8.493e-05,2]
[355672148,1741451443502,-652.26,8.493e-05,2]
[355672150,1741451443511,-2387.01,8.493e-05,2]
[355672152,1741451443520,-644.99,8.493e-05,2]
[355672154,1741451443529,-500.0,8.493e-05,2]
[355672156,1741451443538,-1755.99,8.493e-05,2]
[355672158,1741451443548,-2411.52,8.493e-05,2]
[355672160,1741451443557,-1606.44,8.493e-05,2]
[355672162,1741451443567,-500.0,8.493e-05,2]
[355672164,1741451443576,-1898.02,8.493e-05,2]
[355672166,1741451443586,-1442.37,8.493e-05,2]
[355672168,1741451443595,-1615.13,8.493e-05,2]
[355672170,1741451443604,-786.54,8.493e-05,2]
[355672172,1741451443615,-1357.3,8.493e-05,2]
[355672175,1741451443624,-1347.66,8.493e-05,2]
[355672177,1741451443634,-1657.53,8.493e-05,2]
[355672179,1741451443643,-4139.0,8.493e-05,2]
[355672181,1741451443653,-500.0,8.493e-05,2]
[355672183,1741451443665,-631.73,8.493e-05,2]
[355672185,1741451443677,-785.85,8.493e-05,2]
[355672187,1741451443686,-1497.11,8.493e-05,2]
[355672188,1741451443695,-500.0,8.493e-05,2]
[355672191,1741451443705,-2769.7,8.493e-05,2]
[355672193,1741451443715,-500.0,8.493e-05,2]
[355672194,1741451443724,-2984.49,8.493e-05,2]
[355672196,1741451443733,-500.0,8.493e-05,2]
[355672199,1741451443745,-867.84,8.493e-05,2]
[355672201,1741451443755,-500.0,8.493e-05,2]
[355672203,1741451443765,-1313.55,8.493e-05,2]
[355672205,1741451443774,-2262.85,8.493e-05,2]
[355672207,1741451443783,-6133.09,8.493e-05,2]
[355672209,1741451443793,-1595.58,8.493e-05,2]
[355672211,1741451443803,-1157.52,8.493e-05,2]
[355672213,1741451443812,-5995.75,8.493e-05,2]
[355672215,1741451443821,-752.18,8.493e-05,2]
[355672217,1741451443831,-1037.89,8.493e-05,2]
[355672219,1741451443840,-1319.49,8.493e-05,2]
[355672221,1741451443850,-2879.6,8.493e-05,2]
[355672223,1741451443859,-778.74,8.493e-05,2]
[355672225,1741451443869,-6919.1,8.493e-05,2]
[355672227,1741451443879,-1075.32,8.493e-05,2]
[355672229,1741451443888,-1222.18,8.493e-05,2]
[355672231,1741451443897,-567.75,8.493e-05,2]
[355672233,1741451443907,-2235.53,8.493e-05,2]
[355672235,1741451443916,-572.79,8.493e-05,2]
[355672237,1741451443926,-2152.71,8.493e-05,2]
[355672239,1741451443935,-1166.49,8.493e-05,2]
[355672241,1741451443946,-200.63187546,8.493e-05,2]
[355672243,1741451443955,-872.98,8.493e-05,2]
[355672245,1741451443964,-2187.41,8.493e-05,2]
[355672247,1741451443974,-1382.87,8.493e-05,2]
[355672249,1741451443983,-747.04,8.493e-05,2]
[355672251,1741451443993,-500.0,8.493e-05,2]
[355672253,1741451444003,-1474.93,8.493e-05,2]
[355672255,1741451444012,-12011.57,8.493e-05,2]
[355672257,1741451444022,-604.0,8.493e-05,2]
[355672259,1741451444032,-2171.47,8.493e-05,2]
[355672261,1741451444041,-887.2,8.493e-05,2]
[355672263,1741451444051,-789.79,8.493e-05,2]
[355672265,1741451444060,-500.0,8.493e-05,2]
[355672267,1741451444071,-1286.66,8.493e-05,2]
[355672269,1741451444080,-2756.22,8.493e-05,2]
[355672271,1741451444089,-3089.68,8.493e-05,2]
[355672273,1741451444099,-1257.23,8.493e-05,2]
[355672275,1741451444108,-1805.35,8.493e-05,2]
[355672277,1741451444118,-1011.66,8.493e-05,2]
[355672279,1741451444128,-935.65,8.493e-05,2]
[355672281,1741451444137,-1306.31,8.493e-05,2]
[355672283,1741451444147,-2989.51,8.493e-05,2]
[355672285,1741451444156,-2233.02,8.493e-05,2]
[355672287,1741451444168,-689.64,8.493e-05,2]
[355672289,1741451444178,-1722.74,8.493e-05,2]
[355672291,1741451444188,-1687.87,8.493e-05,2]
[355672292,1741451444197,-500.0,8.493e-05,2]
[355672293,1741451444206,-723.51,8.493e-05,2]
[355672294,1741451444216,-721.1,8.493e-05,2]
[355672295,1741451444225,-1813.66,8.493e-05,2]
[355672296,1741451444235,-3122.98,8.493e-05,2]
[355672297,1741451444245,-500.0,8.493e-05,2]
[355672298,1741451444254,-3325.61,8.493e-05,2]
[355672299,1741451444263,-883.29,8.493e-05,2]
[355672301,1741451444273,-2528.21,8.493e-05,2]
[355672302,1741451444283,-913.18,8.493e-05,2]
[355672304,1741451444293,-500.0,8.493e-05,2]
[355672307,1741451444303,-620.61,8.493e-05,2]
[355672309,1741451444313,-1264.6,8.493e-05,2]
[355672311,1741451444323,-2830.5,8.493e-05,2]
[355672313,1741451444332,-2363.22,8.493e-05,2]
[355672315,1741451444342,-2773.87,8.493e-05,2]
[355672317,1741451444352,-2181.61,8.493e-05,2]
[355672319,1741451444361,-1413.01,8.493e-05,2]
[355672321,1741451444371,-6293.62,8.493e-05,2]
[355672323,1741451444380,-942.29,8.493e-05,2]
[355672325,1741451444390,-5945.69,8.493e-05,2]
[355672327,1741451444399,-1229.87,8.493e-05,2]
[355672329,1741451444409,-500.0,8.493e-05,2]
[355672331,1741451444418,-11444.74,8.493e-05,2]
[355672333,1741451444429,-1402.52,8.493e-05,2]
[355672335,1741451444439,-500.0,8.493e-05,2]
[355672337,1741451444448,-5476.0,8.493e-05,2]
[355672339,1741451444459,-5354.48,8.493e-05,2]
[355672341,1741451444473,-1510.82,8.493e-05,2]
[355672343,1741451444482,-610.59,8.493e-05,2]
[355672345,1741451444492,-500.0,8.493e-05,2]
[355672347,1741451444501,-500.0,8.493e-05,2]
[355672349,1741451444510,-753.57,8.493e-05,2]
[355672351,1741451444519,-26516.81,8.493e-05,2]
[355672353,1741451444529,-3055.95,8.493e-05,2]
[355672355,1741451444539,-1942.47,8.493e-05,2]
[355672357,1741451444548,-5042.13,8.493e-05,2]
[355672359,1741451444557,-2040.87,8.493e-05,2]
[355672361,1741451444567,-500.0,8.493e-05,2]
[355672363,1741451444576,-500.0,8.493e-05,2]
[355672365,1741451444585,-1004.65,8.493e-05,2]
[355672367,1741451444595,-500.0,8.493e-05,2]
[355672369,1741451444604,-500.0,8.493e-05,2]
[355672371,1741451444613,-500.0,8.493e-05,2]
[355672373,1741451444624,-2132.5,8.493e-05,2]
[355672375,1741451444634,-715.95,8.493e-05,2]
[355672377,1741451444643,-500.0,8.493e-05,2]
[355672379,1741451444652,-500.0,8.493e-05,2]
[355672381,1741451444663,-1521.6,8.5e-05,2]
[355672383,1741451444675,-242.28760978,8.728e-05,2]
[355672402,1741451444843,-500.0,8.766e-05,2]
[355672405,1741451444865,-500.0,8.766e-05,2]
[355672407,1741451444876,-500.0,8.766e-05,2]
[355672409,1741451444885,-500.0,8.766e-05,2]
[355672411,1741451444895,-255.07582135,8.766e-05,2]
[355672413,1741451444904,-500.0,8.766e-05,2]
[355672415,1741451444914,-500.0,8.766e-05,2]
[355672417,1741451444923,-500.0,8.766e-05,2]
[355672419,1741451444933,-500.0,8.766e-05,2]
[355672421,1741451444942,-500.0,8.766e-05,2]
[355672423,1741451444952,-500.0,8.766e-05,2]
[355672425,1741451444962,-500.0,8.766e-05,2]
[355672427,1741451444971,-500.0,8.766e-05,2]
[355672429,1741451444980,-500.0,8.766e-05,2]
[355672431,1741451444990,-500.0,8.766e-05,2]
[355672433,1741451444999,-500.0,8.766e-05,2]
[355672435,1741451445009,-500.0,8.766e-05,2]
[355672437,1741451445019,-500.0,8.766e-05,2]
[355672439,1741451445029,-500.0,8.766e-05,2]
[355672441,1741451445038,-500.0,8.766e-05,2]
[355672443,1741451445048,-500.0,8.766e-05,2]
[355672445,1741451445057,-500.0,8.766e-05,2]
[355672447,1741451445067,-353.80593118,8.766e-05,2]
[355672449,1741451445077,-500.0,8.766e-05,2]
[355672451,1741451445087,-500.0,8.766e-05,2]
[355672453,1741451445096,-500.0,8.766e-05,2]
[355672455,1741451445106,-516.47,8.766e-05,2]
[355672457,1741451445117,-500.0,8.766e-05,2]
[355672460,1741451445127,-500.0,8.766e-05,2]
[355672462,1741451445137,-515.54,8.766e-05,2]
[355672464,1741451445147,-500.0,8.766e-05,2]
[355672466,1741451445156,-500.0,8.766e-05,2]
[355672467,1741451445166,-500.0,8.766e-05,2]
[355672470,1741451445175,-500.0,8.766e-05,2]
[355672472,1741451445185,-500.0,8.766e-05,2]
[355672474,1741451445194,-500.0,8.766e-05,2]
[355672476,1741451445204,-265.19504598,8.766e-05,2]
[355672478,1741451445214,-500.0,8.766e-05,2]
[355672480,1741451445223,-500.0,8.766e-05,2]
[355672482,1741451445233,-500.0,8.766e-05,2]
[355672484,1741451445243,-500.0,8.766e-05,2]
[355672486,1741451445254,-500.0,8.766e-05,2]
[355672488,1741451445264,-500.0,8.766e-05,2]
[355672490,1741451445273,-199.30328824,8.766e-05,2]
[355672492,1741451445283,-503.04,8.766e-05,2]
[355672494,1741451445292,-500.0,8.766e-05,2]
[355672496,1741451445302,-500.0,8.766e-05,2]
[355672498,1741451445311,-500.0,8.766e-05,2]
[355672500,1741451445321,-500.0,8.766e-05,2]
[355672502,1741451445331,-500.0,8.766e-05,2]
[355672504,1741451445340,-500.0,8.766e-05,2]
[355672506,1741451445350,-500.0,8.766e-05,2]
[355672508,1741451445360,-500.0,8.766e-05,2]
[355672510,1741451445370,-500.0,8.766e-05,2]
[355672512,1741451445380,-500.0,8.766e-05,2]
[355672514,1741451445390,-500.0,8.766e-05,2]
[355672516,1741451445400,-500.0,8.766e-05,2]
[355672518,1741451445411,-500.0,8.766e-05,2]
[355672520,1741451445421,-500.0,8.766e-05,2]
[355672522,1741451445430,-500.0,8.766e-05,2]
[355672525,1741451445440,-500.0,8.766e-05,2]
[355672527,1741451445452,-500.0,8.766e-05,2]
[355672529,1741451445462,-1415.94,8.766e-05,2]
[355672531,1741451445472,-500.0,8.766e-05,2]
[355672533,1741451445481,-3456.85,8.766e-05,2]
[355672535,1741451445491,-18642.08,8.766e-05,2]
[355672537,1741451445502,-500.0,8.766e-05,2]
[355672539,1741451445511,-500.0,8.766e-05,2]
[355672541,1741451445521,-500.0,8.766e-05,2]
[355672543,1741451445531,-500.0,8.766e-05,2]
[355672545,1741451445540,-1926.7,8.766e-05,2]
[355672547,1741451445550,-500.0,8.766e-05,2]
[355672549,1741451445559,-500.0,8.766e-05,2]
[355672551,1741451445568,-1524.69,8.766e-05,2]
[355672553,1741451445578,-500.0,8.766e-05,2]
[355672555,1741451445587,-3210.16,8.766e-05,2]
[355672557,1741451445597,-1162.98,8.766e-05,2]
[355672559,1741451445607,-500.0,8.766e-05,2]
[355672561,1741451445617,-4438.78,8.766e-05,2]
[355672563,1741451445628,-500.0,8.766e-05,2]
[355672565,1741451445638,-500.0,8.766e-05,2]
[355672567,1741451445647,-3434.96,8.766e-05,2]
[355672569,1741451445656,-500.0,8.766e-05,2]
[355672571,1741451445669,-500.0,8.766e-05,2]
[355672573,1741451445678,-500.0,8.766e-05,2]
[355672575,1741451445688,-2478.27,8.766e-05,2]
[355672577,1741451445697,-500.0,8.766e-05,2]
[355672579,1741451445707,-500.0,8.766e-05,2]
[355672581,1741451445717,-597.79,8.766e-05,2]
[355672583,1741451445727,-500.0,8.766e-05,2]
[355672585,1741451445736,-500.0,8.766e-05,2]
[355672587,1741451445747,-3321.47,8.766e-05,2]
[355672589,1741451445757,-500.0,8.766e-05,2]
[355672591,1741451445767,-395.54230687,8.766e-05,2]
[355672593,1741451445776,-5913.05,8.766e-05,2]
[355672595,1741451445786,-500.0,8.766e-05,2]
[355672597,1741451445795,-500.0,8.766e-05,2]
[355672599,1741451445804,-2776.28,8.766e-05,2]
[355672601,1741451445814,-500.0,8.766e-05,2]
[355672603,1741451445823,-500.0,8.766e-05,2]
[355672605,1741451445833,-500.0,8.766e-05,2]
[355672607,1741451445843,-500.0,8.767e-05,2]
[355672609,1741451445852,-500.0,8.767e-05,2]
[355672611,1741451445861,-500.0,8.767e-05,2]
[355672613,1741451445873,-500.0,8.767e-05,2]
[355672615,1741451445882,-500.0,8.767e-05,2]
[355672617,1741451445891,-500.0,8.767e-05,2]
[355672619,1741451445900,-500.0,8.767e-05,2]
[355672621,1741451445909,-500.0,8.767e-05,2]
[355672623,1741451445918,-500.0,8.767e-05,2]
[355672625,1741451445927,-500.0,8.767e-05,2]
[355672627,1741451445936,-500.0,8.767e-05,2]
[355672629,1741451445946,-500.0,8.767e-05,2]
[355672631,1741451445955,-500.0,8.767e-05,2]
[355672633,1741451445965,-500.0,8.767e-05,2]
[355672635,1741451445974,-500.0,8.767e-05,2]
[355672637,1741451445984,-500.0,8.767e-05,2]
[355672639,1741451445993,-500.0,8.767e-05,2]
[355672641,1741451446003,-1116.68,8.767e-05,2]
[355672643,1741451446012,-500.0,8.767e-05,2]
[355672645,1741451446021,-573.32,8.767e-05,2]
[355672648,1741451446031,-585.74,8.767e-05,2]
[355672651,1741451446040,-672.36,8.767e-05,2]
[355672653,1741451446051,-500.0,8.767e-05,2]
[355672655,1741451446060,-500.0,8.767e-05,2]
[355672657,1741451446070,-500.0,8.767e-05,2]
[355672659,1741451446080,-500.0,8.767e-05,2]
[355672661,1741451446089,-768.45,8.767e-05,2]
[355672663,1741451446099,-500.0,8.767e-05,2]
[355672665,1741451446108,-561.25,8.767e-05,2]
[355672667,1741451446119,-500.0,8.767e-05,2]
[355672669,1741451446129,-539.97,8.767e-05,2]
[355672671,1741451446138,-546.55,8.767e-05,2]
[355672673,1741451446148,-500.0,8.767e-05,2]
[355672675,1741451446158,-500.0,8.767e-05,2]
[355672677,1741451446167,-500.0,8.767e-05,2]
[355672679,1741451446177,-646.68,8.767e-05,2]
[355672681,1741451446186,-536.39,8.767e-05,2]
[355672682,1741451446197,-839.06,8.767e-05,2]
[355672684,1741451446207,-500.0,8.767e-05,2]
[355672686,1741451446216,-500.0,8.767e-05,2]
[355672688,1741451446226,-500.0,8.767e-05,2]
[355672691,1741451446235,-500.0,8.767e-05,2]
[355672694,1741451446245,-531.11,8.767e-05,2]
[355672697,1741451446255,-500.0,8.767e-05,2]
[355672698,1741451446264,-500.0,8.767e-05,2]
[355672699,1741451446273,-793.82,8.767e-05,2]
[355672700,1741451446283,-500.0,8.767e-05,2]
[355672701,1741451446292,-500.0,8.767e-05,2]
[355672702,1741451446301,-500.0,8.767e-05,2]
[355672703,1741451446311,-500.0,8.767e-05,2]
[355672704,1741451446320,-500.0,8.767e-05,2]
[355672705,1741451446329,-500.0,8.767e-05,2]
[355672706,1741451446338,-543.53,8.767e-05,2]
[355672707,1741451446347,-668.88,8.767e-05,2]
[355672708,1741451446356,-577.31,8.767e-05,2]
[355672709,1741451446365,-500.0,8.767e-05,2]
[355672710,1741451446376,-500.0,8.767e-05,2]
[355672711,1741451446385,-500.0,8.767e-05,2]
[355672712,1741451446394,-500.0,8.767e-05,2]
[355672713,1741451446403,-500.0,8.767e-05,2]
[355672715,1741451446413,-500.0,8.767e-05,2]
[355672717,1741451446423,-500.0,8.767e-05,2]
[355672719,1741451446433,-601.95,8.767e-05,2]
[355672721,1741451446443,-500.0,8.767e-05,2]
[355672722,1741451446453,-742.56,8.767e-05,2]
[355672723,1741451446462,-532.68,8.767e-05,2]
[355672724,1741451446472,-500.0,8.767e-05,2]
[355672725,1741451446481,-807.54,8.767e-05,2]
[355672726,1741451446491,-393.282689,8.767e-05,2]
[355672727,1741451446500,-500.0,8.767e-05,2]
[355672728,1741451446510,-922.48,8.767e-05,2]
[355672729,1741451446519,-552.31,8.767e-05,2]
[355672730,1741451446529,-585.707846,8.767e-05,2]
[355672731,1741451446538,-500.0,8.767e-05,2]
[355672732,1741451446548,-500.0,8.767e-05,2]
[355672733,1741451446557,-679.49,8.767e-05,2]
[355672734,1741451446567,-500.0,8.767e-05,2]
[355672735,1741451446576,-864.87,8.767e-05,2]
[355672736,1741451446586,-1001.97,8.767e-05,2]
[355672738,1741451446595,-500.0,8.767e-05,2]
[355672739,1741451446605,-567.04,8.767e-05,2]
[355672741,1741451446615,-500.0,8.767e-05,2]
[355672743,1741451446626,-834.37,8.767e-05,2]
[355672744,1741451446636,-500.0,8.767e-05,2]
[355672745,1741451446645,-860.21,8.767e-05,2]
[355672746,1741451446655,-1049.79,8.767e-05,2]
[355672747,1741451446669,-500.0,8.767e-05,2]
[355672748,1741451446678,-859.81,8.767e-05,2]
[355672749,1741451446688,-500.0,8.767e-05,2]
[355672750,1741451446698,-1000.46,8.767e-05,2]
[355672751,1741451446709,-500.0,8.767e-05,2]
[355672752,1741451446719,-608.51,8.767e-05,2]
[355672753,1741451446728,-500.0,8.767e-05,2]
[355672754,1741451446738,-500.0,8.767e-05,2]
[355672755,1741451446749,-1201.81,8.767e-05,2]
[355672756,1741451446760,-976.28,8.767e-05,2]
[355672757,1741451446771,-500.0,8.767e-05,2]
[355672758,1741451446780,-500.0,8.767e-05,2]
[355672760,1741451446790,-500.0,8.767e-05,2]
[355672761,1741451446799,-676.23,8.767e-05,2]
[355672762,1741451446809,-500.0,8.767e-05,2]
[355672763,1741451446819,-500.0,8.767e-05,2]
[355672764,1741451446828,-1192.68,8.767e-05,2]
[355672765,1741451446838,-528.52,8.767e-05,2]
[355672766,1741451446847,-500.0,8.767e-05,2]
[355672767,1741451446856,-500.0,8.767e-05,2]
[355672769,1741451446866,-628.26,8.767e-05,2]
[355672771,1741451446878,-972.3,8.767e-05,2]
[355672773,1741451446887,-1006.07,8.767e-05,2]
[355672774,1741451446897,-923.34,8.767e-05,2]
[355672775,1741451446907,-500.0,8.767e-05,2]
[355672776,1741451446917,-764.96,8.767e-05,2]
[355672777,1741451446927,-500.0,8.767e-05,2]
[355672778,1741451446936,-565.59,8.767e-05,2]
[355672779,1741451446946,-564.81,8.767e-05,2]
[355672780,1741451446956,-930.15,8.767e-05,2]
[355672781,1741451446965,-633.41,8.767e-05,2]
[355672782,1741451446975,-594.03,8.767e-05,2]
[355672783,1741451446984,-1121.78,8.767e-05,2]
[355672784,1741451446994,-864.36,8.767e-05,2]
[355672785,1741451447004,-500.0,8.767e-05,2]
[355672786,1741451447013,-500.0,8.767e-05,2]
[355672787,1741451447023,-773.96,8.767e-05,2]
[355672788,1741451447033,-603.49,8.767e-05,2]
[355672789,1741451447044,-9453.73,8.767e-05,2]
[355672790,1741451447053,-627.02,8.767e-05,2]
[355672792,1741451447063,-594.4,8.767e-05,2]
[355672793,1741451447073,-1209.92,8.767e-05,2]
[355672794,1741451447082,-4992.78,8.767e-05,2]
[355672795,1741451447092,-855.4,8.767e-05,2]
[355672796,1741451447102,-1003.48,8.767e-05,2]
[355672797,1741451447111,-1041.41,8.767e-05,2]
[355672798,1741451447122,-879.88,8.767e-05,2]
[355672799,1741451447131,-2121.73,8.767e-05,2]
[355672800,1741451447141,-1387.09,8.767e-05,2]
[355672801,1741451447151,-652.26,8.767e-05,2]
[355672802,1741451447160,-2387.01,8.767e-05,2]
[355672803,1741451447170,-644.99,8.767e-05,2]
[355672804,1741451447180,-500.0,8.767e-05,2]
[355672805,1741451447189,-1755.99,8.767e-05,2]
[355672806,1741451447198,-2411.52,8.767e-05,2]
[355672807,1741451447208,-1606.44,8.767e-05,2]
[355672808,1741451447218,-500.0,8.767e-05,2]
[355672809,1741451447229,-1898.02,8.767e-05,2]
[355672810,1741451447294,-1442.37,8.767e-05,2]
[355672811,1741451447305,-1615.13,8.767e-05,2]
[355672812,1741451447314,-786.54,8.767e-05,2]
[355672813,1741451447324,-1357.3,8.767e-05,2]
[355672814,1741451447334,-1347.66,8.767e-05,2]
[355672815,1741451447344,-1657.53,8.767e-05,2]
[355672816,1741451447353,-4139.0,8.767e-05,2]
[355672817,1741451447363,-500.0,8.767e-05,2]
[355672818,1741451447375,-785.85,8.767e-05,2]
[355672819,1741451447385,-631.73,8.767e-05,2]
[355672820,1741451447395,-1497.11,8.767e-05,2]
[355672821,1741451447404,-500.0,8.767e-05,2]
[355672822,1741451447414,-2769.7,8.767e-05,2]
[355672823,1741451447423,-500.0,8.767e-05,2]
[355672824,1741451447433,-2984.49,8.767e-05,2]
[355672825,1741451447443,-500.0,8.767e-05,2]
[355672826,1741451447453,-867.84,8.767e-05,2]
[355672827,1741451447463,-500.0,8.767e-05,2]
[355672828,1741451447473,-1313.55,8.767e-05,2]
[355672829,1741451447482,-2262.85,8.767e-05,2]
[355672830,1741451447493,-6133.09,8.767e-05,2]
[355672831,1741451447503,-1595.58,8.767e-05,2]
[355672832,1741451447514,-1157.52,8.767e-05,2]
[355672833,1741451447524,-5995.75,8.767e-05,2]
[355672834,1741451447535,-752.18,8.767e-05,2]
[355672835,1741451447546,-1037.89,8.767e-05,2]
[355672836,1741451447556,-1319.49,8.767e-05,2]
[355672837,1741451447565,-2879.6,8.767e-05,2]
[355672838,1741451447575,-778.74,8.767e-05,2]
[355672839,1741451447585,-6919.1,8.767e-05,2]
[355672840,1741451447595,-1075.32,8.767e-05,2]
[355672841,1741451447605,-1222.18,8.767e-05,2]
[355672842,1741451447614,-567.75,8.767e-05,2]
[355672843,1741451447625,-2235.53,8.767e-05,2]
[355672844,1741451447635,-572.79,8.767e-05,2]
[355672845,1741451447644,-2152.71,8.767e-05,2]
[355672846,1741451447653,-1166.49,8.767e-05,2]
[355672847,1741451447665,-872.98,8.767e-05,2]
[355672848,1741451447676,-2187.41,8.767e-05,2]
[355672849,1741451447685,-1382.87,8.767e-05,2]
[355672850,1741451447695,-747.04,8.767e-05,2]
[355672851,1741451447704,-500.0,8.767e-05,2]
[355672852,1741451447714,-1474.93,8.767e-05,2]
[355672853,1741451447724,-12011.57,8.767e-05,2]
[355672854,1741451447733,-604.0,8.767e-05,2]
[355672855,1741451447743,-2171.47,8.767e-05,2]
[355672856,1741451447753,-887.2,8.767e-05,2]
[355672857,1741451447762,-789.79,8.767e-05,2]
[355672858,1741451447772,-500.0,8.767e-05,2]
[355672859,1741451447782,-1286.66,8.767e-05,2]
[355672860,1741451447792,-2756.22,8.767e-05,2]
[355672861,1741451447802,-3089.68,8.767e-05,2]
[355672862,1741451447812,-1257.23,8.767e-05,2]
[355672863,1741451447821,-1805.35,8.767e-05,2]
[355672864,1741451447832,-1011.66,8.767e-05,2]
[355672865,1741451447842,-935.65,8.767e-05,2]
[355672866,1741451447851,-1306.31,8.767e-05,2]
[355672867,1741451447862,-2989.51,8.767e-05,2]
[355672868,1741451447873,-2233.02,8.767e-05,2]
[355672869,1741451447883,-689.64,8.767e-05,2]
[355672870,1741451447893,-1722.74,8.767e-05,2]
[355672871,1741451447902,-1687.87,8.767e-05,2]
[355672872,1741451447912,-500.0,8.767e-05,2]
[355672873,1741451447921,-723.51,8.767e-05,2]
[355672874,1741451447931,-721.1,8.767e-05,2]
[355672875,1741451447941,-1813.66,8.767e-05,2]
[355672876,1741451447951,-3122.98,8.767e-05,2]
[355672877,1741451447961,-500.0,8.767e-05,2]
[355672878,1741451447970,-3325.61,8.767e-05,2]
[355672879,1741451447979,-883.29,8.767e-05,2]
[355672880,1741451447989,-2528.21,8.767e-05,2]
[355672881,1741451447998,-913.18,8.767e-05,2]
[355672882,1741451448009,-194.85890009,8.767e-05,2]
[355672883,1741451448018,-1264.6,8.767e-05,2]
[355672884,1741451448028,-620.61,8.767e-05,2]
[355672885,1741451448039,-2830.5,8.767e-05,2]
[355672886,1741451448048,-2363.22,8.767e-05,2]
[355672887,1741451448058,-2773.87,8.767e-05,2]
[355672888,1741451448067,-2181.61,8.767e-05,2]
[355672889,1741451448077,-1413.01,8.767e-05,2]
[355672890,1741451448087,-6293.62,8.767e-05,2]
[355672891,1741451448096,-942.29,8.767e-05,2]
[355672892,1741451448106,-5945.69,8.767e-05,2]
[355672893,1741451448116,-1229.87,8.767e-05,2]
[355672894,1741451448126,-500.0,8.767e-05,2]
[355672895,1741451448136,-11444.74,8.767e-05,2]
[355672896,1741451448145,-1402.52,8.767e-05,2]
[355672897,1741451448157,-500.0,8.767e-05,2]
[355672898,1741451448168,-5476.0,8.767e-05,2]
[355672899,1741451448178,-5354.48,8.767e-05,2]
[355672900,1741451448187,-1510.82,8.767e-05,2]
[355672901,1741451448197,-610.59,8.767e-05,2]
[355672902,1741451448207,-500.0,8.767e-05,2]
[355672903,1741451448216,-500.0,8.767e-05,2]